[Event "German Bundesliga 2022-23"]
[Site "Germany"]
[Date "2022.10.23"]
[Round "2.7"]
[White "Zelcic, Robert"]
[Black "Buckels, Valentin"]
[Result "1-0"]
[ECO "C47"]
[WhiteElo "2495"]
[BlackElo "2456"]
[Annotator "TA"]
[PlyCount "61"]
[EventDate "2022.10.21"]
[EventType "team-tourn"]
[EventCountry "GER"]
[SourceTitle "playchess.com"]
[Source "ChessBase"]
[SourceQuality "1"]
[TimeControl "40/6000+30:3000+30"]

{[%evp 17,61,0,0,0,9,8,5,5,19,-12,0,-3,0,0,-5,-11,23,18,20,18,18,19,29,16,25,21,22,20,28,29,38,20,41,41,69,59,195,108,204,204,758,752,1019,362,959,950]} 1. e4 {[%emt 0:00:01]} e5 {[%emt 0:01:21]} 2. Nf3 {[%emt 0:00:05]} Nc6 {[%emt 0:00:25]} 3. Nc3 {[%emt 0:05:28]} Nf6 {[%emt 0:00:39]} 4. d4 {[%emt 0:00:05]} exd4 {[%emt 0:00:22]} 5. Nxd4 {[%emt 0:00:04]} Bb4 {[%emt 0:00:08]} 6. Nxc6 {[%emt 0:00:05]} bxc6 {[%emt 0:00:06]} 7. Bd3 {[%emt 0:00:04]} d5 {[%emt 0:00:26]} 8. exd5 {[%emt 0:00:05]} O-O {[%emt 0:00:35] is now debated instead of 8...cxd5.} 9. O-O {[%emt 0:00:05]} cxd5 {[%emt 0:00:55]} 10. h3 {[%emt 0:00:05] C47: Scotch Four Knights and Four Knights with 4 g3.} Be6 {[%emt 0:01:46]} 11. Qf3 {[%emt 0:02:24]} c5 {[%emt 0:02:02]} 12. Rd1 {[%emt 0:02:50] The position is equal.} Qe7 {[%emt 0:02:59] [#]} 13. a3 $146 {[%emt 0:12:22]} ({Predecessor:} 13. Bg5 Bxc3 14. bxc3 h6 15. Be3 Rab8 16. Rab1 c4 17. Bf5 Bxf5 18. Qxf5 Qe6 19. Qf4 Rxb1 20. Rxb1 {1-0 (37) Xiong,J (2688)-Svane,R (2649) Chess.com INT 2022}) 13... Bxc3 {[%emt 0:19:16]} 14. bxc3 {[%emt 0:00:56]} c4 {[%emt 0:17:27]} 15. Bf1 {[%emt 0:02:13]} Ne4 {[%emt 0:00:30]} 16. Bxc4 {[%emt 0:11:04]} Nxc3 {[%emt 0:01:33]} (16... Nxf2 $5 17. Qxf2 dxc4 $11) 17. Qxc3 {[%emt 0:00:40]} dxc4 {[%emt 0:00:19]} 18. Be3 {[%emt 0:00:05]} Rfd8 {[%emt 0:03:59]} 19. Rd4 {[%emt 0:00:45]} Rd7 {[%emt 0:06:01]} 20. Rad1 {[%emt 0:03:14]} Rad8 {[%emt 0:02:01]} 21. Qa5 {[%emt 0:03:37][%cal Oa5a7]} h6 {[%emt 0:03:46]} 22. c3 {[%emt 0:00:55]} Rxd4 {[%emt 0:25:15]} 23. Rxd4 {[%emt 0:00:07]} Rb8 {[%emt 0:00:27]} 24. a4 {[%emt 0:07:16]} (24. Qe5 {is more complex.} Rb1+ 25. Kh2 f6 26. Qe4) 24... Rb3 {[%emt 0:13:57]} 25. Rd1 {[%emt 0:04:07][%cal Bd4d1,Bd1d8,Bd8h8][%mdl 32]} Qf6 {[%emt 0:04:18]} 26. Qxa7 {[%emt 0:02:36]} Qg6 {[%emt 0:01:44]} ({Black should try} 26... Kh7 $14) 27. Rd8+ $18 {[%emt 0:10:47]} Kh7 {[%emt 0:00:01] [#]} 28. Qa8 $1 {[%emt 0:00:09][%csl Ga8][%cal Rd8h8] Active counter play!} Qb1+ $2 {[%emt 0:01:02]} (28... Qf5 29. Rh8+ Kg6) 29. Kh2 {[%emt 0:00:04] Hoping for Rh8+.} Rxc3 {[%emt 0:00:53]} 30. Rh8+ {[%emt 0:00:11]} Kg6 {[%emt 0:00:03][%cal Oc3e3]} 31. Qg8 {[%emt 0:00:28] Weighted Error Value: White=0.03 (flawless) /Black=0.19 (very precise)} 1-0

[Event "German Bundesliga 2022-23"]
[Site "Germany"]
[Date "2022.10.23"]
[Round "2.7"]
[White "Yankelevich, Lev"]
[Black "Petrisor, Adrian-Marian"]
[Result "1/2-1/2"]
[ECO "D02"]
[WhiteElo "2484"]
[BlackElo "2404"]
[Annotator "TA"]
[PlyCount "43"]
[EventDate "2022.10.21"]
[EventType "team-tourn"]
[EventCountry "GER"]
[SourceTitle "playchess.com"]
[Source "ChessBase"]
[SourceQuality "1"]
[TimeControl "40/6000+30:3000+30"]

{[%evp 11,43,26,9,15,18,16,12,13,77,37,22,10,20,0,16,0,0,0,0,0,12,0,55,-8,-12,-14,-22,-21,0,-14,-2,0,-8,0]} 1. Nf3 {[%emt 0:00:33]} d5 {[%emt 0:00:47]} 2. d4 {[%emt 0:01:10]} e6 {[%emt 0:02:54]} 3. g3 {[%emt 0:02:31]} Nf6 {[%emt 0:00:35]} 4. Bg2 {[%emt 0:00:05]} b5 {[%emt 0:00:06]} 5. O-O {[%emt 0:00:21]} Nbd7 {[%emt 0:00:33]} 6. a4 {[%emt 0:00:57]} b4 {[%emt 0:00:11]} 7. c4 {[%emt 0:00:02] D02: 1 d4 d5 2 Nf3 sidelines, including 2...Nf6 3 g3 and 2...Nf6 3 Bf4.} bxc3 {[%emt 0:00:12]} 8. Nxc3 {[%emt 0:00:04] 8.Nxc3 is better than 8.bxc3.} Ba6 {[%emt 0:06:28]} 9. Bf4 {[%emt 0:06:35]} Nh5 {[%emt 0:10:24]} (9... c6 $11 {remains equal.}) 10. Bd2 {[%emt 0:04:12]} (10. Bg5 $5 {[%cal Rg5d8]} Qb8 11. Qc2 $14) 10... Nhf6 {[%emt 0:05:46] [#]} 11. Re1 $146 {[%emt 0:01:18]} ({Predecessor:} 11. Qc2 c5 12. Nb5 Be7 13. Bf4 Bxb5 14. axb5 Qb6 15. dxc5 Bxc5 16. b4 Bxb4 17. Rfb1 {0-1 (23) Korchmar,V (2405)-Lugovskoy,M (2489) Taganrog 2016}) 11... Be7 {[%emt 0:03:11]} 12. Qc2 {[%emt 0:11:23]} (12. e4 {is more complex.} Nxe4 13. Nxe4 dxe4 14. Ne5) 12... O-O {[%emt 0:01:40]} 13. e4 {[%emt 0:03:06]} Nxe4 {[%emt 0:03:50]} 14. Nxe4 {[%emt 0:00:24]} dxe4 {[%emt 0:00:05]} 15. Rxe4 {[%emt 0:10:54]} Bb7 {[%emt 0:13:09]} 16. Ree1 {[%emt 0:11:25]} c5 {[%emt 0:08:22] [#]} (16... Rb8 $11) 17. Bc3 {[%emt 0:05:25]} (17. Ng5 $1 $14 Bxg5 18. Bxg5 (18. Bxb7 Bxd2 19. Qxd2 Rb8 $15) 18... Qxg5 19. Bxb7 (19. h4 Qf6 $15)) 17... cxd4 $11 {[%emt 0:03:12] The position is equal.} 18. Nxd4 {[%emt 0:04:02]} Bxg2 {[%emt 0:00:37]} 19. Kxg2 {[%emt 0:00:08]} Rc8 {[%emt 0:06:02] Inhibits Nc6.} 20. Rad1 {[%emt 0:00:10]} Bb4 {[%emt 0:06:46]} 21. Nb5 {[%emt 0:00:56]} Bxc3 {[%emt 0:01:24]} 22. Nxc3 {[%emt 0:00:54] Weighted Error Value: White=0.16 (very precise) /Black=0.13 (very precise)} 1/2-1/2

[Event "German Bundesliga 2022-23"]
[Site "Germany"]
[Date "2022.10.23"]
[Round "2.7"]
[White "Kurmann, Oliver"]
[Black "Wong, Gengchun"]
[Result "1-0"]
[ECO "B81"]
[WhiteElo "2452"]
[BlackElo "2195"]
[Annotator "TA"]
[PlyCount "69"]
[EventDate "2022.10.21"]
[EventType "team-tourn"]
[EventCountry "GER"]
[SourceTitle "playchess.com"]
[Source "ChessBase"]
[SourceQuality "1"]
[TimeControl "40/6000+30:3000+30"]

{[%evp 13,69,-33,-21,-31,0,22,7,15,16,20,22,8,15,24,59,62,74,75,70,70,74,65,70,55,66,72,85,4,11,30,158,140,187,204,452,419,454,441,1052,1037,1046,1024,1643,1592,1535,1380,1155,544,1584,1552,1370,1002,1658,612,29989,29990,29988,29989]} 1. e4 {[%emt 0:00:03]} c5 {[%emt 0:00:06]} 2. Nf3 {[%emt 0:00:07]} d6 {[%emt 0:00:03]} 3. d4 {[%emt 0:00:08]} cxd4 {[%emt 0:00:03]} 4. Nxd4 {[%emt 0:00:09]} Nf6 {[%emt 0:00:05]} 5. Nc3 {[%emt 0:00:07]} a6 {[%emt 0:00:03]} 6. Be3 {[%emt 0:00:13]} e6 {[%emt 0:00:14]} 7. g4 {[%emt 0:00:30][%cal Bg2g4,Bg4g5][%mdl 32]} e5 $1 {[%emt 0:00:04][%csl LRd4,LRg4]} 8. Nf5 {[%emt 0:00:11] B81: Sicilian Scheveningen: Keres Attack.} h5 {[%emt 0:03:26]} (8... g6 $15 9. Nh6 Bxh6 10. Bxh6 Nxg4) 9. g5 $11 {[%emt 0:00:17]} Nxe4 {[%emt 0:00:08]} 10. Nxg7+ $1 {[%emt 0:00:10] The position is equal.} Bxg7 {[%emt 0:00:02]} 11. Nxe4 {[%emt 0:00:11]} d5 {[%emt 0:00:04]} 12. Ng3 {[%emt 0:00:16]} d4 $1 {[%emt 0:00:06]} ({Much less strong is} 12... Bg4 13. Be2 $14) 13. Bd2 $36 {[%emt 0:00:40][%mdl 2048] White has the initiative.} Qd5 {[%emt 0:00:25]} 14. c4 {[%emt 0:03:37]} Qc6 {[%emt 0:01:40] Strongly threatening ...h4.} 15. Bd3 {[%emt 0:05:01] Be4 is the strong threat.} Bg4 {[%emt 0:01:38]} 16. Qc2 {[%emt 0:10:40]} Nd7 {[%emt 0:02:05]} 17. Be4 {[%emt 0:03:58]} Qc7 {[%emt 0:01:37]} 18. Nf5 {[%emt 0:00:16]} Bxf5 {[%emt 0:01:03]} 19. Bxf5 {[%emt 0:00:01] [#]} Nc5 $146 {[%emt 0:18:53]} ({Predecessor:} 19... O-O-O 20. O-O-O Kb8 21. b4 Nb6 22. c5 Nd5 23. Kb1 Rhe8 24. f3 e4 25. Bxe4 Ne3 {½-½ (47) Fischer,D (2123)-Heinemann,J (2270) Basel 2018}) 20. b4 {[%emt 0:03:20]} ({White should try} 20. O-O $16) 20... d3 {[%emt 0:35:50]} 21. Bxd3 {[%emt 0:28:19]} e4 {[%emt 0:01:09]} (21... Nxd3+ $11 {remains equal.} 22. Qxd3 Rd8) 22. Bxe4 $16 {[%emt 0:00:02] aiming for 0-0-0.} Bxa1 {[%emt 0:01:06]} (22... Qe5 $16) 23. bxc5 $18 {[%emt 0:00:08]} O-O-O $2 {[%emt 0:10:40] [#]} (23... Bg7 24. O-O Rd8) 24. O-O $1 {[%emt 0:00:43][%cal Be1g1,Bg1h2,Bh2h1][%mdl 32]} Be5 {[%emt 0:00:31]} 25. Rb1 {[%emt 0:03:45]} Qxc5 {[%emt 0:04:27]} (25... Rxd2 $142 26. Qxd2 Qxc5 27. Bxb7+ Kc7) 26. Bxb7+ {[%emt 0:05:06]} Kc7 {[%emt 0:02:31]} 27. Bb4 {[%emt 0:01:29] A strong pair of Bishops.} Bxh2+ {[%emt 0:01:44]} 28. Kxh2 {[%emt 0:01:03]} Qe5+ {[%emt 0:00:05]} 29. Kh1 {[%emt 0:05:31][%cal Oc2a4] Threatening mate with Qa4!} Rd4 {[%emt 0:05:01]} 30. Qc3 {[%emt 0:07:10]} Rg8 {[%emt 0:13:50]} 31. Ba5+ {[%emt 0:02:39]} Kd7 {[%emt 0:00:04]} 32. Qh3+ {[%emt 0:09:50]} Qe6 {[%emt 0:00:18] [#]} 33. Bg2 {[%emt 0:09:17]} (33. Bc6+ $142 $1 {[%mdl 512]} Kxc6 34. Rb6+ Kc5 35. Rxe6 fxe6 36. Qe3) 33... Rc8 {[%emt 0:07:15]} 34. Rb7+ {[%emt 0:04:03]} Ke8 {[%emt 0:00:01]} 35. Qxh5 {[%emt 0:00:17] Weighted Error Value: White=1.03/Black=0.55} 1-0

[Event "German Bundesliga 2022-23"]
[Site "Germany"]
[Date "2022.10.23"]
[Round "2.7"]
[White "Meissner, Felix"]
[Black "Donchenko, Alexander"]
[Result "1/2-1/2"]
[ECO "B13"]
[WhiteElo "2369"]
[BlackElo "2646"]
[Annotator "RC"]
[PlyCount "111"]
[EventDate "2022.10.21"]
[EventType "team-tourn"]
[EventCountry "GER"]
[SourceTitle "playchess.com"]
[Source "ChessBase"]
[SourceQuality "1"]
[TimeControl "40/6000+30:3000+30"]

1. e4 {[%emt 0:00:03]} c6 {[%emt 0:00:21]} 2. d4 {[%emt 0:01:35]} d5 {[%emt 0:00:07]} 3. exd5 {[%emt 0:00:35]} cxd5 {[%emt 0:00:08]} 4. Bd3 {[%emt 0:00:07]} Nf6 {[%emt 0:00:47]} 5. h3 {[%emt 0:01:30]} Nc6 {[%emt 0:00:25]} 6. c3 {[%emt 0:01:30]} e5 {[%emt 0:00:36]} 7. dxe5 {[%emt 0:00:39]} Nxe5 {[%emt 0:00:08]} 8. Nf3 {[%emt 0:01:49]} Nxd3+ {[%emt 0:00:17]} 9. Qxd3 {[%emt 0:00:02]} Bd6 {[%emt 0:00:11]} 10. O-O {[%emt 0:02:46]} O-O {[%emt 0:00:50]} 11. Bg5 {[%emt 0:30:38]} h6 {[%emt 0:00:45]} 12. Bh4 {[%emt 0:03:32]} g5 {[%emt 0:15:10]} 13. Bg3 {[%emt 0:01:40]} Bxg3 {[%emt 0:00:16]} 14. fxg3 {[%emt 0:00:07]} g4 {[%emt 0:09:22]} 15. hxg4 {[%emt 0:04:36]} Nxg4 {[%emt 0:01:27]} 16. Nbd2 {[%emt 0:03:52]} Qb6+ {[%emt 0:15:12]} 17. Qd4 {[%emt 0:07:43]} Qxb2 {[%emt 0:03:30]} 18. Rab1 {[%emt 0:03:09]} Qa3 {[%emt 0:07:09]} 19. Nh2 {[%emt 0:03:30]} Nxh2 {[%emt 0:07:56]} 20. Kxh2 {[%emt 0:00:08]} Re8 {[%emt 0:01:10]} 21. Qxd5 {[%emt 0:15:02]} Be6 {[%emt 0:02:21]} 22. Qh5 {[%emt 0:00:18]} Qxc3 {[%emt 0:13:31]} 23. Ne4 {[%emt 0:01:19]} Qg7 {[%emt 0:01:03]} 24. Nf6+ {[%emt 0:00:22]} Kh8 {[%emt 0:00:08]} 25. Nxe8 {[%emt 0:01:19]} Rxe8 {[%emt 0:00:02]} 26. Rxb7 {[%emt 0:01:19]} Bxa2 {[%emt 0:03:22]} 27. Rxa7 {[%emt 0:03:18]} Be6 {[%emt 0:00:24]} 28. Qh4 {[%emt 0:02:12]} Qg5 {[%emt 0:03:47]} 29. Qd4+ {[%emt 0:03:31]} Kg8 {[%emt 0:05:19]} 30. Rf4 {[%emt 0:09:28]} Rd8 {[%emt 0:01:09]} 31. Qf6 {[%emt 0:00:59]} Qxf6 {[%emt 0:06:02]} 32. Rxf6 {[%emt 0:00:02]} Rd2 {[%emt 0:00:06]} 33. Rxh6 {[%emt 0:01:06]} Bd5 {[%emt 0:00:12]} 34. Rd6 {[%emt 0:01:47]} Rxg2+ {[%emt 0:01:14]} 35. Kh3 {[%emt 0:00:05]} Ra2 {[%emt 0:00:20]} 36. Rxa2 {[%emt 0:00:37]} Bxa2 {[%emt 0:00:03]} 37. Kh4 {[%emt 0:00:42]} Kg7 {[%emt 0:02:45]} 38. Kg5 {[%emt 0:02:01]} Be6 {[%emt 0:04:11]} 39. Kf4 {[%emt 0:01:11]} Kf6 {[%emt 0:01:46]} 40. Rb6 {[%emt 0:00:07]} Kg6 {[%emt 0:00:26]} 41. Rb8 {[%emt 0:52:29]} Kf6 {[%emt 0:17:33]} 42. Rg8 {[%emt 0:00:00]} Ke7 {[%emt 0:00:44]} 43. Rh8 {[%emt 0:00:00]} f6 {[%emt 0:01:40]} 44. Rh7+ {[%emt 0:00:00]} Kf8 {[%emt 0:00:22]} 45. Ra7 {[%emt 0:00:00]} Ke8 {[%emt 0:00:08]} 46. Ke4 {[%emt 0:00:00]} Kf8 {[%emt 0:00:11]} 47. Kd4 {[%emt 0:00:00]} Ke8 {[%emt 0:00:24]} 48. Kc5 {[%emt 0:00:00]} Kf8 {[%emt 0:00:07]} 49. Kd6 {[%emt 0:00:00]} Bb3 {[%emt 0:00:29]} 50. Rc7 {[%emt 0:00:00]} Ba2 {[%emt 0:00:34]} 51. g4 {[%emt 0:00:00]} Bb3 {[%emt 0:00:25]} 52. Rc3 {[%emt 0:00:00]} Bd1 {[%emt 0:04:08]} 53. Rg3 {[%emt 0:00:00]} Kf7 {[%emt 0:00:18]} 54. Rg1 {[%emt 0:00:00]} Be2 {[%emt 0:00:18]} 55. g5 {[%emt 0:00:00]} fxg5 {[%emt 0:00:07]} 56. Rxg5 {[%emt 0:00:00]} 1/2-1/2

[Event "German Bundesliga 2022-23"]
[Site "Germany"]
[Date "2022.10.23"]
[Round "2.8"]
[White "Movsesian, Sergei"]
[Black "Bracker, Frank"]
[Result "1-0"]
[ECO "B48"]
[WhiteElo "2619"]
[BlackElo "2372"]
[Annotator "ChessBase"]
[PlyCount "51"]
[EventDate "2022.10.21"]
[EventType "team-tourn"]
[EventCountry "GER"]
[SourceTitle "playchess.com"]
[Source "ChessBase"]
[SourceQuality "1"]
[TimeControl "40/6000+30:3000+30"]

1. e4 {[%emt 0:00:04]} c5 {[%emt 0:00:07]} 2. Nc3 {[%emt 0:00:26]} Nc6 {[%emt 0:00:12]} 3. Nge2 {[%emt 0:00:22]} e6 {[%emt 0:00:34]} 4. d4 {[%emt 0:01:56]} cxd4 {[%emt 0:00:11]} 5. Nxd4 {[%emt 0:00:03]} Qc7 {[%emt 0:00:15]} 6. Be3 {[%emt 0:01:49]} a6 {[%emt 0:00:15]} 7. a3 {[%emt 0:01:04]} b5 {[%emt 0:01:00]} 8. Nxc6 {[%emt 0:00:12]} Qxc6 {[%emt 0:00:17]} 9. h4 {[%emt 0:00:18]} Bb7 {[%emt 0:08:07]} 10. h5 {[%emt 0:00:59]} Rc8 {[%emt 0:08:56]} 11. Bd4 {[%emt 0:14:48]} h6 {[%emt 0:02:56]} 12. Rh3 {[%emt 0:04:22]} Nf6 {[%emt 0:06:37]} 13. e5 {[%emt 0:03:18]} Ne4 {[%emt 0:09:21]} 14. Qg4 {[%emt 0:01:43]} Rg8 {[%emt 0:07:47]} 15. Re3 {[%emt 0:03:48]} Nxc3 {[%emt 0:03:52]} 16. Rxc3 {[%emt 0:01:09]} Qd5 {[%emt 0:00:36]} 17. Rxc8+ {[%emt 0:04:38]} Bxc8 {[%emt 0:00:07]} 18. Be2 {[%emt 0:16:10]} Bc5 {[%emt 0:06:26]} 19. Bc3 {[%emt 0:00:45]} Qb7 {[%emt 0:06:35]} 20. Bd3 {[%emt 0:07:57]} Qb6 {[%emt 0:06:24]} 21. O-O-O {[%emt 0:01:26]} Bxf2 {[%emt 0:05:54]} 22. Kb1 {[%emt 0:03:10]} Bb7 {[%emt 0:05:34]} 23. Bh7 {[%emt 0:06:30]} Rf8 {[%emt 0:00:54]} 24. Qxg7 {[%emt 0:00:07]} Bc5 {[%emt 0:01:58]} 25. Qxh6 {[%emt 0:03:28]} a5 {[%emt 0:03:51]} 26. Qd2 {[%emt 0:04:41]} 1-0

[Event "German Bundesliga 2022-23"]
[Site "Germany"]
[Date "2022.10.23"]
[Round "2.8"]
[White "Hausrath, Daniel"]
[Black "Zaja, Ivan"]
[Result "1/2-1/2"]
[ECO "A05"]
[WhiteElo "2465"]
[BlackElo "2417"]
[Annotator "TA"]
[PlyCount "59"]
[EventDate "2022.10.21"]
[EventType "team-tourn"]
[EventCountry "GER"]
[SourceTitle "playchess.com"]
[Source "ChessBase"]
[SourceQuality "1"]
[TimeControl "40/6000+30:3000+30"]

{[%evp 13,59,15,29,37,29,22,36,36,27,34,36,38,34,35,33,2,10,-6,44,26,43,48,58,31,43,36,41,22,33,31,34,31,41,36,59,33,35,8,0,18,63,0,0,0,-13,-47,-74,-35]} 1. Nf3 {[%emt 0:01:16]} Nf6 {[%emt 0:00:16]} 2. g3 {[%emt 0:00:37]} b6 {[%emt 0:00:10]} 3. Bg2 {[%emt 0:00:06]} Bb7 {[%emt 0:00:06]} 4. O-O {[%emt 0:00:07]} e6 {[%emt 0:00:13]} 5. c4 {[%emt 0:00:47]} Be7 {[%emt 0:00:08]} 6. d4 {[%emt 0:00:18]} O-O {[%emt 0:00:11]} 7. Re1 {[%emt 0:00:34]} c5 {[%emt 0:11:41]} 8. d5 {[%emt 0:02:30] E17: Queen's Indian: 4 g3 Bb7 5 Bg2 Be7.} exd5 {[%emt 0:00:19]} 9. Nh4 {[%emt 0:00:23]} Ne4 {[%emt 0:00:08] [#] aiming for ...f5.} 10. cxd5 {[%emt 0:00:36] White is slightly better.} Bxh4 {[%emt 0:00:13]} 11. Bxe4 {[%emt 0:00:23]} Bf6 {[%emt 0:00:06]} 12. Qc2 {[%emt 0:04:11] has lost popularity (12.Nc3).} h6 {[%emt 0:00:58]} 13. Bf4 {[%emt 0:03:31]} d6 {[%emt 0:06:13]} 14. Na3 {[%emt 0:29:39]} Bg5 {[%emt 0:09:22]} 15. Bxg5 {[%emt 0:06:15]} Qxg5 {[%emt 0:01:52]} (15... hxg5 $11 16. Bg2 a6) 16. Nc4 {[%emt 0:01:08] [#]} Qe7 $146 {[%emt 0:03:01]} ({Predecessor:} 16... Qf6 17. Bg2 Ba6 18. b3 Nd7 19. f4 Bxc4 20. bxc4 b5 21. cxb5 a6 22. b6 Rfb8 {1-0 (37) Sargissian,G (2691)-Iturrizaga Bonelli,E (2660) Linares 2014}) 17. Bg2 {[%emt 0:03:01]} Ba6 {[%emt 0:25:39]} 18. Ne3 {[%emt 0:02:22]} Bc8 {[%emt 0:01:48]} 19. Qc3 {[%emt 0:08:50]} Re8 {[%emt 0:04:48]} 20. a3 {[%emt 0:04:11]} Nd7 {[%emt 0:04:08]} 21. Nf5 {[%emt 0:02:44][%csl Gf5,LRe7,LRg7][%cal Rc3g7] [#]} Qf8 {[%emt 0:00:19]} 22. e4 {[%emt 0:01:04]} g6 {[%emt 0:07:46]} 23. Ne3 {[%emt 0:01:06]} Ba6 {[%emt 0:02:18]} 24. f4 {[%emt 0:06:29]} Qg7 {[%emt 0:01:07]} 25. Qc2 {[%emt 0:00:36] Hoping for Qa4.} c4 {[%emt 0:04:00]} 26. Qc3 {[%emt 0:10:55]} Nc5 {[%emt 0:06:52]} 27. Ng4 {[%emt 0:03:53]} ({White should play} 27. e5 $1 $14) 27... Qxc3 $11 {[%emt 0:00:05]} 28. bxc3 {[%emt 0:00:03]} Kg7 {[%emt 0:00:07] Prevents Nf6.} 29. Re3 {[%emt 0:05:50]} (29. e5 $5 {[%cal Re5d6]}) 29... h5 {[%emt 0:02:43]} 30. Nf2 {[%emt 0:00:24] Weighted Error Value: White=0.14 (very precise) /Black=0.08 (flawless)} 1/2-1/2

[Event "German Bundesliga 2022-23"]
[Site "Germany"]
[Date "2022.10.23"]
[Round "2.8"]
[White "Geirnaert, Steven"]
[Black "Berchtenbreiter, Maximilian"]
[Result "1-0"]
[ECO "D36"]
[WhiteElo "2399"]
[BlackElo "2509"]
[Annotator "TA"]
[PlyCount "81"]
[EventDate "2022.10.21"]
[EventType "team-tourn"]
[EventCountry "GER"]
[SourceTitle "playchess.com"]
[Source "ChessBase"]
[SourceQuality "1"]
[TimeControl "40/6000+30:3000+30"]

{[%evp 19,81,30,49,47,40,18,18,19,21,24,24,25,38,0,0,0,0,0,0,-8,18,18,41,33,45,40,47,27,49,42,51,15,31,31,82,89,87,66,96,96,108,77,145,145,174,175,177,179,374,310,29983,29984,29985,29986,29984,29985,29996,29992,29992,29992,29992,29993,29993,29994]} 1. d4 {[%emt 0:00:04]} Nf6 {[%emt 0:00:10]} 2. c4 {[%emt 0:00:04]} e6 {[%emt 0:00:39]} 3. Nc3 {[%emt 0:00:06]} d5 {[%emt 0:00:12]} 4. cxd5 {[%emt 0:00:14]} exd5 {[%emt 0:00:06]} 5. Bg5 {[%emt 0:00:07]} Be7 {[%emt 0:00:05]} 6. e3 {[%emt 0:00:13]} O-O {[%emt 0:02:03]} 7. Bd3 {[%emt 0:00:40]} Re8 {[%emt 0:01:51]} 8. Nf3 {[%emt 0:06:44]} c6 {[%emt 0:01:23]} 9. Qc2 {[%emt 0:00:13]} Ne4 {[%emt 0:04:39]} 10. Bf4 {[%emt 0:06:50]} Bf5 {[%emt 0:12:56]} 11. O-O {[%emt 0:20:09] D36: Queen's Gambit Declined: Exchange Variation: Main line (5 Bg5 c6 6 Qc2).} Bf6 {[%emt 0:15:31] [#]} 12. Be5 $146 {[%emt 0:06:16][%cal Rc3e4]} ({Predecessor:} 12. Ne5 Bxe5 13. Bxe5 Bg6 14. Nxe4 dxe4 15. Bxe4 Bxe4 16. Qxe4 Nd7 17. Qf4 Nxe5 18. dxe5 {0-1 (48) Cayon,L (1648)-Mateus,M (2116) Cali 2017}) 12... Nd7 {[%emt 0:02:01][%cal Rd7e5]} 13. Nxe4 {[%emt 0:01:15] The position is equal.} dxe4 {[%emt 0:00:38]} 14. Bxe4 {[%emt 0:00:29]} Bxe4 {[%emt 0:00:03]} 15. Qxe4 {[%emt 0:00:09][%cal Oe5f6]} Qa5 {[%emt 0:03:41][%cal Rd7e5]} 16. Rfd1 {[%emt 0:08:54]} (16. b4 $5 Bxe5 17. bxa5 (17. Nxe5 Qc7 $11) 17... Bxh2+ 18. Kxh2 Rxe4 19. Rfc1 $14) 16... Nxe5 {[%emt 0:01:47]} 17. dxe5 {[%emt 0:00:53]} Bxe5 {[%emt 0:00:10]} 18. Nxe5 {[%emt 0:00:56]} Rxe5 {[%emt 0:00:04]} 19. Qf4 {[%emt 0:00:37]} Rf5 {[%emt 0:00:44]} (19... Rd5 $5 {[%cal Ra5a2]}) 20. Qd6 {[%emt 0:02:01]} Qb6 {[%emt 0:07:08]} 21. Rd2 {[%emt 0:01:48]} h6 {[%emt 0:02:50]} 22. Rad1 {[%emt 0:03:51]} a5 {[%emt 0:00:20]} 23. g4 {[%emt 0:10:04]} Rg5 {[%emt 0:04:11]} 24. h3 {[%emt 0:00:17]} Re8 {[%emt 0:01:38] Against Qe7} 25. Qd4 {[%emt 0:02:48]} Qb5 {[%emt 0:06:23]} 26. Qf4 {[%emt 0:03:14] Strongly threatening Rd8.} Rd5 {[%emt 0:33:35] Prevents Rd8.} ({Black should play} 26... f6 $14) 27. Rxd5 $16 {[%emt 0:05:39]} cxd5 {[%emt 0:00:09][%mdl 4096] Endgame KQR-KQR} 28. Qd4 {[%emt 0:00:11]} a4 {[%emt 0:00:24]} 29. Rd2 {[%emt 0:02:19]} ({Don't play} 29. Qxd5 Qxb2 30. Rd2 Qb1+ 31. Kg2 b5 $11) 29... Rd8 {[%emt 0:00:44]} 30. e4 {[%emt 0:01:33]} Rc8 {[%emt 0:00:58]} ({Better is} 30... a3) 31. exd5 {[%emt 0:04:12]} (31. Qxd5 Rc1+ 32. Kh2 (32. Kg2 Qf1+ 33. Kg3 Qg1+ 34. Kf4 Qh2+ 35. Ke3 Qxh3+ 36. f3 Re1+ 37. Re2 Rxe2+ 38. Kxe2 Qg2+ 39. Ke3 Qxb2 $17) 32... Qf1 $15) 31... Rc4 {[%emt 0:01:48]} 32. Qd3 {[%emt 0:02:03] Hoping for Rd1.} Rc1+ {[%emt 0:00:19]} 33. Kg2 {[%emt 0:01:03]} Qe8 {[%emt 0:01:15]} (33... Qxd3 34. Rxd3 Kf8) 34. d6 {[%emt 0:07:46] [#] And now d7 would win.} Qe1 $2 {[%emt 0:00:09]} (34... Qd7 $18 35. Re2 Rc8) 35. d7 {[%emt 0:04:19] White mates.} Qh1+ {[%emt 0:00:16]} 36. Kg3 {[%emt 0:00:10][%cal Rd7d8]} Rg1+ {[%emt 0:00:03]} 37. Kh4 {[%emt 0:02:23][%cal Rd7d8] Active counter play!} g6 {[%emt 0:04:28]} 38. d8=Q+ {[%emt 0:00:19]} Kh7 {[%emt 0:00:02]} 39. Qf6 {[%emt 0:01:14]} Rxg4+ {[%emt 0:03:42]} 40. Kxg4 {[%emt 0:00:14]} Qg2+ {[%emt 0:00:04]} 41. Kh4 {[%emt 0:51:41] Weighted Error Value: White=0.10 (very precise) /Black=0.39} 1-0